[Event "Titled Tuesday Blitz April 05 Late 2022"]
[White "Ashiev, Eduard"]
[Black "Bellissimo, Joseph F."]
[WhiteFideId "4130090"]
[BlackFideId "2609843"]
[WhiteElo "2004"]
[BlackElo "2061"]
[Result "0-1"]
[Round "05"]
[TimeControl "180+1"]
[Date "2022.04.06"]
[WhiteClock "0:00:01"]
[BlackClock "0:00:42"]

1. d4 {[%clk 0:03:00]}  Nf6 {[%clk 0:02:59]} 2. Nf3 {[%clk 0:03:00]}  e6 {[%clk 0:03:00]} 3. c4 {[%clk 0:02:59]}  d5 {[%clk 0:02:59]} 4. Nc3 {[%clk 0:02:59]}  Be7 {[%clk 0:02:56]} 5. Bf4 {[%clk 0:02:58]}  O-O {[%clk 0:02:55]} 6. e3 {[%clk 0:02:58]}  a6 {[%clk 0:02:55]} 7. c5 {[%clk 0:02:58]}  Nh5 {[%clk 0:02:42]} 8. Bd3 {[%clk 0:02:44]}  Nxf4 {[%clk 0:02:41]} 9. exf4 {[%clk 0:02:44]}  b6 {[%clk 0:02:34]} 10. b4 {[%clk 0:02:25]}  a5 {[%clk 0:02:33]} 11. a3 {[%clk 0:02:24]}  bxc5 {[%clk 0:02:14]} 12. bxc5 {[%clk 0:02:20]}  Ba6 {[%clk 0:02:13]} 13. O-O {[%clk 0:02:12]}  Nc6 {[%clk 0:02:09]} 14. Rb1 {[%clk 0:02:06]}  Bf6 {[%clk 0:02:04]} 15. Bxa6 {[%clk 0:01:52]}  Rxa6 {[%clk 0:02:05]} 16. Qa4 {[%clk 0:01:43]}  Qd7 {[%clk 0:01:58]} 17. Ne5 {[%clk 0:01:32]}  Bxe5 {[%clk 0:01:55]} 18. fxe5 {[%clk 0:01:30]}  f6 {[%clk 0:01:52]} 19. exf6 {[%clk 0:01:08]}  Rxf6 {[%clk 0:01:51]} 20. Rbe1 {[%clk 0:01:08]}  Ra8 {[%clk 0:01:47]} 21. g3 {[%clk 0:01:01]}  Raf8 {[%clk 0:01:45]} 22. f4 {[%clk 0:01:01]}  h6 {[%clk 0:01:32]} 23. Qd1 {[%clk 0:00:46]}  Qf7 {[%clk 0:01:27]} 24. Kg2 {[%clk 0:00:37]}  g5 {[%clk 0:01:14]} 25. Qg4 {[%clk 0:00:34]}  Nxd4 {[%clk 0:01:10]} 26. h4 {[%clk 0:00:18]}  Nc2 {[%clk 0:01:01]} 27. Re2 {[%clk 0:00:15]}  Qg6 {[%clk 0:01:01]} 28. h5 {[%clk 0:00:10]}  Qd3 {[%clk 0:00:56]} 29. Rxe6 {[%clk 0:00:06]}  Ne3+ {[%clk 0:00:55]} 30. Rxe3 {[%clk 0:00:05]}  Qxe3 {[%clk 0:00:56]} 31. Nxd5 {[%clk 0:00:04]}  Qe4+ {[%clk 0:00:56]} 32. Qf3 {[%clk 0:00:04]}  Qxf3+ {[%clk 0:00:56]} 33. Kxf3 {[%clk 0:00:04]}  R6f7 {[%clk 0:00:47]} 34. Kg4 {[%clk 0:00:02]}  Rd8 {[%clk 0:00:44]} 35. Ne3 {[%clk 0:00:01]}  Rd3 {[%clk 0:00:42]} 0-1


[Site "https://www.chess.com"]

[Event "Titled Tuesday Blitz April 05 Late 2022"]
[White "Barbosa, Evandro Amorim"]
[Black "Ronka, Erik"]
[WhiteFideId "2115824"]
[BlackFideId "505080"]
[WhiteElo "2658"]
[BlackElo "2520"]
[Result "1-0"]
[Round "05"]
[TimeControl "180+1"]
[Date "2022.04.06"]
[WhiteClock "0:01:42"]
[BlackClock "0:00:24"]

1. e4 {[%clk 0:03:00]}  c5 {[%clk 0:02:59]} 2. Nf3 {[%clk 0:03:00]}  e6 {[%clk 0:03:00]} 3. d3 {[%clk 0:03:00]}  d5 {[%clk 0:02:56]} 4. Qe2 {[%clk 0:03:01]}  Be7 {[%clk 0:02:43]} 5. g3 {[%clk 0:03:01]}  Nc6 {[%clk 0:02:39]} 6. Bg2 {[%clk 0:03:01]}  Nf6 {[%clk 0:02:39]} 7. O-O {[%clk 0:03:00]}  O-O {[%clk 0:02:40]} 8. e5 {[%clk 0:03:00]}  Nd7 {[%clk 0:02:40]} 9. c4 {[%clk 0:03:00]}  d4 {[%clk 0:02:36]} 10. h4 {[%clk 0:03:00]}  a6 {[%clk 0:02:29]} 11. Bf4 {[%clk 0:02:59]}  Rb8 {[%clk 0:02:28]} 12. Nbd2 {[%clk 0:02:58]}  b5 {[%clk 0:02:23]} 13. h5 {[%clk 0:02:58]}  h6 {[%clk 0:02:13]} 14. Nh2 {[%clk 0:02:58]}  Bb7 {[%clk 0:02:12]} 15. Ng4 {[%clk 0:02:57]}  Na5 {[%clk 0:01:47]} 16. Bxb7 {[%clk 0:02:54]}  Rxb7 {[%clk 0:01:48]} 17. b3 {[%clk 0:02:54]}  bxc4 {[%clk 0:01:46]} 18. dxc4 {[%clk 0:02:54]}  Nc6 {[%clk 0:01:39]} 19. Ne4 {[%clk 0:02:54]}  a5 {[%clk 0:01:09]} 20. Qd2 {[%clk 0:02:49]}  f5 {[%clk 0:00:59]} 21. exf6 {[%clk 0:02:46]}  Nxf6 {[%clk 0:01:00]} 22. Ngxf6+ {[%clk 0:02:33]}  Bxf6 {[%clk 0:01:01]} 23. Nxc5 {[%clk 0:02:32]}  Re7 {[%clk 0:00:56]} 24. Qd3 {[%clk 0:02:07]}  e5 {[%clk 0:00:36]} 25. Bd2 {[%clk 0:02:06]}  e4 {[%clk 0:00:33]} 26. Nxe4 {[%clk 0:02:03]}  Ne5 {[%clk 0:00:33]} 27. Qe2 {[%clk 0:01:57]}  Nf3+ {[%clk 0:00:31]} 28. Qxf3 {[%clk 0:01:53]}  Bg5 {[%clk 0:00:29]} 29. Qd3 {[%clk 0:01:44]}  Bxd2 {[%clk 0:00:24]} 30. Nxd2 {[%clk 0:01:42]} 1-0


[Site "https://www.chess.com"]

[Event "Titled Tuesday Blitz April 05 Late 2022"]
[White "Bilan, Danila"]
[Black "Winkels, Marcel"]
[WhiteFideId "24161918"]
[BlackFideId "1003887"]
[WhiteElo "2164"]
[BlackElo "1900"]
[Result "1-0"]
[Round "05"]
[TimeControl "180+1"]
[Date "2022.04.06"]
[WhiteClock "0:00:12"]
[BlackClock "0:00:21"]

1. d4 {[%clk 0:02:58]}  Nf6 {[%clk 0:02:58]} 2. Nf3 {[%clk 0:02:57]}  c5 {[%clk 0:02:56]} 3. e3 {[%clk 0:02:51]}  g6 {[%clk 0:02:54]} 4. Be2 {[%clk 0:02:48]}  Bg7 {[%clk 0:02:53]} 5. O-O {[%clk 0:02:49]}  O-O {[%clk 0:02:52]} 6. b3 {[%clk 0:02:49]}  d6 {[%clk 0:02:48]} 7. Bb2 {[%clk 0:02:49]}  b6 {[%clk 0:02:48]} 8. c4 {[%clk 0:02:45]}  Nc6 {[%clk 0:02:42]} 9. Nc3 {[%clk 0:02:39]}  Bf5 {[%clk 0:02:36]} 10. Qd2 {[%clk 0:02:25]}  Ne4 {[%clk 0:02:31]} 11. Nxe4 {[%clk 0:02:24]}  Bxe4 {[%clk 0:02:30]} 12. Rfd1 {[%clk 0:02:20]}  Nb4 {[%clk 0:02:13]} 13. a3 {[%clk 0:02:09]}  Na6 {[%clk 0:02:08]} 14. b4 {[%clk 0:02:03]}  Rc8 {[%clk 0:01:57]} 15. b5 {[%clk 0:01:58]}  Nb8 {[%clk 0:01:54]} 16. a4 {[%clk 0:01:51]}  Nd7 {[%clk 0:01:53]} 17. a5 {[%clk 0:01:46]}  Ra8 {[%clk 0:01:50]} 18. Bd3 {[%clk 0:01:31]}  Bxd3 {[%clk 0:01:47]} 19. Qxd3 {[%clk 0:01:30]}  Qc7 {[%clk 0:01:29]} 20. Bc3 {[%clk 0:01:16]}  Rfd8 {[%clk 0:01:27]} 21. d5 {[%clk 0:01:11]}  Nf6 {[%clk 0:01:24]} 22. e4 {[%clk 0:01:04]}  e5 {[%clk 0:01:18]} 23. dxe6 {[%clk 0:00:44]}  fxe6 {[%clk 0:01:17]} 24. axb6 {[%clk 0:00:38]}  Qxb6 {[%clk 0:01:10]} 25. Ba5 {[%clk 0:00:36]}  Qb7 {[%clk 0:01:06]} 26. Bxd8 {[%clk 0:00:35]}  Rxd8 {[%clk 0:01:06]} 27. e5 {[%clk 0:00:33]}  Ng4 {[%clk 0:00:58]} 28. g3 {[%clk 0:00:14]}  Nxe5 {[%clk 0:00:56]} 29. Nxe5 {[%clk 0:00:14]}  Bxe5 {[%clk 0:00:55]} 30. Re1 {[%clk 0:00:13]}  Bxa1 {[%clk 0:00:54]} 31. Rxa1 {[%clk 0:00:12]}  d5 {[%clk 0:00:49]} 32. Qe3 {[%clk 0:00:10]}  Qd7 {[%clk 0:00:46]} 33. Qxc5 {[%clk 0:00:07]}  d4 {[%clk 0:00:46]} 34. Rxa7 {[%clk 0:00:07]}  Qe8 {[%clk 0:00:39]} 35. Qe5 {[%clk 0:00:07]}  Rd7 {[%clk 0:00:33]} 36. Ra2 {[%clk 0:00:02]}  d3 {[%clk 0:00:32]} 37. Rd2 {[%clk 0:00:02]}  Qe7 {[%clk 0:00:32]} 38. Qe3 {[%clk 0:00:02]}  Qd6 {[%clk 0:00:29]} 39. c5 {[%clk 0:00:02]}  Qd4 {[%clk 0:00:29]} 40. Qxd4 {[%clk 0:00:02]}  Rxd4 {[%clk 0:00:28]} 41. c6 {[%clk 0:00:03]}  Rc4 {[%clk 0:00:23]} 42. Rxd3 {[%clk 0:00:03]}  Rc5 {[%clk 0:00:23]} 43. Rd7 {[%clk 0:00:02]}  Rxb5 {[%clk 0:00:22]} 44. c7 {[%clk 0:00:03]}  Rc5 {[%clk 0:00:19]} 45. Rd8+ {[%clk 0:00:03]}  Kf7 {[%clk 0:00:20]} 46. c8=Q {[%clk 0:00:04]}  Rxc8 {[%clk 0:00:20]} 47. Rxc8 {[%clk 0:00:05]}  Kf6 {[%clk 0:00:20]} 48. Rc3 {[%clk 0:00:06]}  Ke5 {[%clk 0:00:20]} 49. Kg2 {[%clk 0:00:07]}  Kf6 {[%clk 0:00:21]} 50. Re3 {[%clk 0:00:07]}  Ke7 {[%clk 0:00:21]} 51. h4 {[%clk 0:00:08]}  Kd6 {[%clk 0:00:22]} 52. Kf3 {[%clk 0:00:09]}  Kd5 {[%clk 0:00:22]} 53. Kf4 {[%clk 0:00:10]}  e5+ {[%clk 0:00:22]} 54. Kg5 {[%clk 0:00:11]}  e4 {[%clk 0:00:21]} 55. Kh6 {[%clk 0:00:12]}  Kd4 {[%clk 0:00:21]} 56. Kxh7 {[%clk 0:00:12]} 1-0


[Site "https://www.chess.com"]

[Event "Titled Tuesday Blitz April 05 Late 2022"]
[White "Buchenau, Frank"]
[Black "Karas, Marek"]
[WhiteFideId "4604350"]
[BlackFideId "14928558"]
[WhiteElo "2448"]
[BlackElo "2605"]
[Result "1-0"]
[Round "05"]
[TimeControl "180+1"]
[Date "2022.04.06"]
[WhiteClock "0:01:07"]
[BlackClock "0:00:04"]

1. e4 {[%clk 0:03:00]}  c6 {[%clk 0:02:59]} 2. Nf3 {[%clk 0:03:00]}  d5 {[%clk 0:03:00]} 3. Nc3 {[%clk 0:03:01]}  Nf6 {[%clk 0:03:00]} 4. e5 {[%clk 0:02:59]}  Ne4 {[%clk 0:03:01]} 5. Ne2 {[%clk 0:02:59]}  Qb6 {[%clk 0:03:00]} 6. d4 {[%clk 0:02:58]}  e6 {[%clk 0:02:41]} 7. Ng3 {[%clk 0:02:57]}  c5 {[%clk 0:02:34]} 8. Bd3 {[%clk 0:02:56]}  Nxg3 {[%clk 0:02:34]} 9. hxg3 {[%clk 0:02:56]}  cxd4 {[%clk 0:02:20]} 10. Nxd4 {[%clk 0:02:56]}  Nc6 {[%clk 0:02:18]} 11. Nxc6 {[%clk 0:02:54]}  bxc6 {[%clk 0:02:05]} 12. O-O {[%clk 0:02:52]}  Bc5 {[%clk 0:01:55]} 13. Qg4 {[%clk 0:02:50]}  g6 {[%clk 0:01:50]} 14. c3 {[%clk 0:02:46]}  Ba6 {[%clk 0:01:48]} 15. Bxa6 {[%clk 0:02:43]}  Qxa6 {[%clk 0:01:49]} 16. Bg5 {[%clk 0:02:37]}  Qd3 {[%clk 0:01:32]} 17. Bf6 {[%clk 0:02:34]}  h5 {[%clk 0:01:31]} 18. Qa4 {[%clk 0:02:25]}  O-O {[%clk 0:01:25]} 19. Qf4 {[%clk 0:02:06]}  Kh7 {[%clk 0:01:22]} 20. g4 {[%clk 0:02:05]}  Qe4 {[%clk 0:01:06]} 21. Qxe4 {[%clk 0:01:33]}  dxe4 {[%clk 0:01:07]} 22. Rfe1 {[%clk 0:01:28]}  e3 {[%clk 0:00:42]} 23. fxe3 {[%clk 0:01:24]}  hxg4 {[%clk 0:00:26]} 24. Kf2 {[%clk 0:01:23]}  g5 {[%clk 0:00:25]} 25. Bxg5 {[%clk 0:01:21]}  Kg6 {[%clk 0:00:25]} 26. Bf6 {[%clk 0:01:20]}  Rab8 {[%clk 0:00:20]} 27. b4 {[%clk 0:01:19]}  Bb6 {[%clk 0:00:20]} 28. Kg3 {[%clk 0:01:18]}  Bd8 {[%clk 0:00:18]} 29. Rf1 {[%clk 0:01:11]}  Bxf6 {[%clk 0:00:10]} 30. Rxf6+ {[%clk 0:01:12]}  Kg7 {[%clk 0:00:10]} 31. Raf1 {[%clk 0:01:09]}  Rbd8 {[%clk 0:00:10]} 32. R1f4 {[%clk 0:01:08]}  Rd7 {[%clk 0:00:03]} 33. Rxg4+ {[%clk 0:01:07]}  Kh7 {[%clk 0:00:04]} 34. Rf1 {[%clk 0:01:07]} 1-0


[Site "https://www.chess.com"]

[Event "Titled Tuesday Blitz April 05 Late 2022"]
[White "Coelho, Ramyres Santana"]
[Black "Zhou, Qiyu"]
[WhiteFideId "2120690"]
[BlackFideId "505161"]
[WhiteElo "1888"]
[BlackElo "1925"]
[Result "0-1"]
[Round "05"]
[TimeControl "180+1"]
[Date "2022.04.06"]
[WhiteClock "0:00:13"]
[BlackClock "0:00:24"]

1. e4 {[%clk 0:03:00]}  e5 {[%clk 0:02:56]} 2. Nf3 {[%clk 0:02:59]}  Nc6 {[%clk 0:02:56]} 3. d4 {[%clk 0:03:00]}  exd4 {[%clk 0:02:56]} 4. Bc4 {[%clk 0:03:00]}  Nf6 {[%clk 0:02:53]} 5. e5 {[%clk 0:03:00]}  d5 {[%clk 0:02:53]} 6. Bb5 {[%clk 0:03:01]}  Ne4 {[%clk 0:02:50]} 7. Nxd4 {[%clk 0:03:01]}  Bd7 {[%clk 0:02:50]} 8. Bxc6 {[%clk 0:03:01]}  bxc6 {[%clk 0:02:51]} 9. O-O {[%clk 0:02:58]}  Bc5 {[%clk 0:02:47]} 10. f3 {[%clk 0:02:58]}  Ng5 {[%clk 0:02:47]} 11. f4 {[%clk 0:02:58]}  Ne6 {[%clk 0:02:38]} 12. Be3 {[%clk 0:02:58]}  O-O {[%clk 0:02:37]} 13. f5 {[%clk 0:02:55]}  Nxd4 {[%clk 0:02:23]} 14. Bxd4 {[%clk 0:02:56]}  Bxd4+ {[%clk 0:02:10]} 15. Qxd4 {[%clk 0:02:57]}  Re8 {[%clk 0:02:10]} 16. f6 {[%clk 0:02:54]}  Qb8 {[%clk 0:01:55]} 17. Qf4 {[%clk 0:02:44]}  Qxb2 {[%clk 0:01:47]} 18. Qg5 {[%clk 0:02:28]}  Qd4+ {[%clk 0:01:39]} 19. Kh1 {[%clk 0:02:27]}  Qg4 {[%clk 0:01:38]} 20. Qe3 {[%clk 0:01:42]}  d4 {[%clk 0:01:26]} 21. Qf2 {[%clk 0:01:32]}  Rxe5 {[%clk 0:01:22]} 22. fxg7 {[%clk 0:01:32]}  Rf5 {[%clk 0:01:19]} 23. Qe1 {[%clk 0:01:29]}  Re8 {[%clk 0:01:18]} 24. Qc1 {[%clk 0:01:27]}  Re2 {[%clk 0:01:10]} 25. Rg1 {[%clk 0:01:25]}  Rff2 {[%clk 0:01:06]} 26. Qa3 {[%clk 0:00:42]}  Kxg7 {[%clk 0:00:59]} 27. Qg3 {[%clk 0:00:39]}  Qxg3 {[%clk 0:00:51]} 28. hxg3 {[%clk 0:00:40]}  Bh3 {[%clk 0:00:50]} 29. Na3 {[%clk 0:00:31]}  Bxg2+ {[%clk 0:00:49]} 30. Rxg2 {[%clk 0:00:28]}  Rxg2 {[%clk 0:00:46]} 31. Nc4 {[%clk 0:00:27]}  Rxc2 {[%clk 0:00:36]} 32. Ne5 {[%clk 0:00:26]}  Rh2+ {[%clk 0:00:27]} 33. Kg1 {[%clk 0:00:26]}  Rcg2+ {[%clk 0:00:27]} 34. Kf1 {[%clk 0:00:26]}  Rxg3 {[%clk 0:00:27]} 35. Nxc6 {[%clk 0:00:21]}  Rh1+ {[%clk 0:00:21]} 36. Kf2 {[%clk 0:00:21]}  Rc3 {[%clk 0:00:20]} 37. Rxh1 {[%clk 0:00:19]}  Rxc6 {[%clk 0:00:21]} 38. Rd1 {[%clk 0:00:19]}  Rd6 {[%clk 0:00:20]} 39. Rd3 {[%clk 0:00:19]}  c5 {[%clk 0:00:21]} 40. Rg3+ {[%clk 0:00:19]}  Kf6 {[%clk 0:00:21]} 41. Ra3 {[%clk 0:00:20]}  a6 {[%clk 0:00:21]} 42. Rf3+ {[%clk 0:00:21]}  Ke6 {[%clk 0:00:21]} 43. Rh3 {[%clk 0:00:21]}  d3 {[%clk 0:00:20]} 44. Ke1 {[%clk 0:00:21]}  c4 {[%clk 0:00:20]} 45. Kd2 {[%clk 0:00:21]}  c3+ {[%clk 0:00:20]} 46. Kd1 {[%clk 0:00:17]}  d2 {[%clk 0:00:21]} 47. Re3+ {[%clk 0:00:16]}  Kd7 {[%clk 0:00:20]} 48. Rxc3 {[%clk 0:00:17]}  f5 {[%clk 0:00:20]} 49. Rh3 {[%clk 0:00:16]}  h6 {[%clk 0:00:19]} 50. Rf3 {[%clk 0:00:16]}  Ke6 {[%clk 0:00:19]} 51. Rh3 {[%clk 0:00:16]}  Ke5 {[%clk 0:00:19]} 52. Re3+ {[%clk 0:00:16]}  Kf4 {[%clk 0:00:19]} 53. Rh3 {[%clk 0:00:15]}  Kg4 {[%clk 0:00:19]} 54. Rd3 {[%clk 0:00:11]}  Rxd3 {[%clk 0:00:18]} 55. a4 {[%clk 0:00:11]}  Ra3 {[%clk 0:00:17]} 56. a5 {[%clk 0:00:12]}  Ra4 {[%clk 0:00:18]} 57. Kxd2 {[%clk 0:00:12]}  Rxa5 {[%clk 0:00:19]} 58. Ke3 {[%clk 0:00:13]}  Ra3+ {[%clk 0:00:19]} 59. Kf2 {[%clk 0:00:14]}  Rf3+ {[%clk 0:00:19]} 60. Kg2 {[%clk 0:00:14]}  a5 {[%clk 0:00:20]} 61. Kh2 {[%clk 0:00:15]}  a4 {[%clk 0:00:21]} 62. Kg2 {[%clk 0:00:16]}  a3 {[%clk 0:00:22]} 63. Kg1 {[%clk 0:00:17]}  a2 {[%clk 0:00:22]} 64. Kh2 {[%clk 0:00:14]}  a1=Q {[%clk 0:00:22]} 65. Kg2 {[%clk 0:00:15]}  Qa2+ {[%clk 0:00:23]} 66. Kh1 {[%clk 0:00:13]}  Rb3 {[%clk 0:00:24]} 0-1


[Site "https://www.chess.com"]

[Event "Titled Tuesday Blitz April 05 Late 2022"]
[White "Davtyan, David Arm."]
[Black "Rustemov, Alexander"]
[WhiteFideId "13310046"]
[BlackFideId "4119002"]
[WhiteElo "2158"]
[BlackElo "2778"]
[Result "1-0"]
[Round "05"]
[TimeControl "180+1"]
[Date "2022.04.06"]
[WhiteClock "0:00:19"]
[BlackClock "0:00:02"]

1. c4 {[%clk 0:02:15]}  e6 {[%clk 0:02:16]} 2. Nc3 {[%clk 0:02:13]}  d5 {[%clk 0:02:15]} 3. d4 {[%clk 0:02:14]}  Be7 {[%clk 0:02:15]} 4. cxd5 {[%clk 0:02:09]}  exd5 {[%clk 0:02:14]} 5. g3 {[%clk 0:02:09]}  c6 {[%clk 0:02:13]} 6. Bg2 {[%clk 0:02:09]}  Bf5 {[%clk 0:02:13]} 7. Nf3 {[%clk 0:02:08]}  Nf6 {[%clk 0:02:13]} 8. O-O {[%clk 0:02:08]}  O-O {[%clk 0:02:13]} 9. a3 {[%clk 0:02:00]}  a5 {[%clk 0:02:12]} 10. Bg5 {[%clk 0:01:54]}  Nbd7 {[%clk 0:02:10]} 11. Rc1 {[%clk 0:01:53]}  Re8 {[%clk 0:02:09]} 12. Ne5 {[%clk 0:01:51]}  h6 {[%clk 0:02:00]} 13. Nxd7 {[%clk 0:01:43]}  Qxd7 {[%clk 0:01:59]} 14. Bxf6 {[%clk 0:01:42]}  Bxf6 {[%clk 0:02:00]} 15. e3 {[%clk 0:01:42]}  Bh3 {[%clk 0:01:46]} 16. Na4 {[%clk 0:01:39]}  Bxg2 {[%clk 0:01:45]} 17. Kxg2 {[%clk 0:01:38]}  Qe6 {[%clk 0:01:36]} 18. Nc5 {[%clk 0:01:37]}  Qe7 {[%clk 0:01:33]} 19. Qf3 {[%clk 0:01:30]}  g6 {[%clk 0:01:29]} 20. Nxb7 {[%clk 0:01:28]}  Bxd4 {[%clk 0:01:26]} 21. exd4 {[%clk 0:01:26]}  Qxb7 {[%clk 0:01:25]} 22. Rfe1 {[%clk 0:01:25]}  Qxb2 {[%clk 0:01:19]} 23. Rxe8+ {[%clk 0:01:24]}  Rxe8 {[%clk 0:01:19]} 24. Rxc6 {[%clk 0:01:24]}  Qxd4 {[%clk 0:01:17]} 25. Rc7 {[%clk 0:01:22]}  Rf8 {[%clk 0:01:06]} 26. Rd7 {[%clk 0:01:21]}  a4 {[%clk 0:00:54]} 27. Rxd5 {[%clk 0:01:21]}  Qc4 {[%clk 0:00:53]} 28. Rd7 {[%clk 0:01:15]}  Rb8 {[%clk 0:00:44]} 29. Qf6 {[%clk 0:01:09]}  Qe4+ {[%clk 0:00:39]} 30. Kh3 {[%clk 0:01:08]}  Rf8 {[%clk 0:00:35]} 31. Re7 {[%clk 0:01:06]}  Qd3 {[%clk 0:00:30]} 32. Re3 {[%clk 0:01:00]}  Qf1+ {[%clk 0:00:29]} 33. Kg4 {[%clk 0:00:58]}  Kh7 {[%clk 0:00:15]} 34. Re7 {[%clk 0:00:55]}  Kg8 {[%clk 0:00:11]} 35. f3 {[%clk 0:00:52]}  Qd1 {[%clk 0:00:09]} 36. Kh3 {[%clk 0:00:50]}  Qf1+ {[%clk 0:00:08]} 37. Kg4 {[%clk 0:00:50]}  Qg2 {[%clk 0:00:09]} 38. h4 {[%clk 0:00:46]}  Qc2 {[%clk 0:00:08]} 39. Kh3 {[%clk 0:00:45]}  Qb1 {[%clk 0:00:08]} 40. Kg4 {[%clk 0:00:42]}  Qc2 {[%clk 0:00:06]} 41. h5 {[%clk 0:00:41]}  gxh5+ {[%clk 0:00:05]} 42. Kh3 {[%clk 0:00:41]}  Qb1 {[%clk 0:00:05]} 43. Kg2 {[%clk 0:00:24]}  Qa2+ {[%clk 0:00:05]} 44. Kh3 {[%clk 0:00:23]}  Rc8 {[%clk 0:00:06]} 45. Qxh6 {[%clk 0:00:20]}  Qd5 {[%clk 0:00:05]} 46. Qf6 {[%clk 0:00:19]}  Rf8 {[%clk 0:00:02]} 47. Re5 {[%clk 0:00:19]}  Qa2 {[%clk 0:00:02]} 48. Rg5+ {[%clk 0:00:19]}  Kh7 {[%clk 0:00:02]} 49. Qg7# {[%clk 0:00:19]} 1-0


[Site "https://www.chess.com"]

[Event "Titled Tuesday Blitz April 05 Late 2022"]
[White "Degardin, Sylvain"]
[Black "Papp, Levente"]
[WhiteFideId "20623070"]
[BlackFideId "751243"]
[WhiteElo "2501"]
[BlackElo "2612"]
[Result "0-1"]
[Round "05"]
[TimeControl "180+1"]
[Date "2022.04.06"]
[WhiteClock "0:00:34"]
[BlackClock "0:00:33"]

1. d4 {[%clk 0:03:00]}  Nf6 {[%clk 0:02:59]} 2. c4 {[%clk 0:03:00]}  e6 {[%clk 0:02:59]} 3. g3 {[%clk 0:03:00]}  d5 {[%clk 0:02:57]} 4. Bg2 {[%clk 0:03:00]}  Bb4+ {[%clk 0:02:57]} 5. Bd2 {[%clk 0:02:58]}  a5 {[%clk 0:02:57]} 6. Nf3 {[%clk 0:02:56]}  O-O {[%clk 0:02:56]} 7. O-O {[%clk 0:02:56]}  dxc4 {[%clk 0:02:57]} 8. Qc2 {[%clk 0:02:52]}  Bxd2 {[%clk 0:02:54]} 9. Nbxd2 {[%clk 0:02:51]}  b5 {[%clk 0:02:54]} 10. a4 {[%clk 0:02:48]}  c6 {[%clk 0:02:53]} 11. b3 {[%clk 0:02:44]}  cxb3 {[%clk 0:02:53]} 12. Nxb3 {[%clk 0:02:43]}  Nd5 {[%clk 0:02:42]} 13. Rfc1 {[%clk 0:02:27]}  b4 {[%clk 0:02:31]} 14. Ne5 {[%clk 0:02:21]}  Nc3 {[%clk 0:02:14]} 15. Nxc6 {[%clk 0:02:14]}  Nxc6 {[%clk 0:02:14]} 16. Bxc6 {[%clk 0:02:15]}  Ba6 {[%clk 0:02:07]} 17. Bf3 {[%clk 0:02:08]}  Qf6 {[%clk 0:01:45]} 18. Kg2 {[%clk 0:01:57]}  Rad8 {[%clk 0:01:16]} 19. Nc5 {[%clk 0:01:50]}  Bc4 {[%clk 0:01:07]} 20. e3 {[%clk 0:01:43]}  e5 {[%clk 0:01:04]} 21. Ne4 {[%clk 0:01:34]}  Nxe4 {[%clk 0:01:00]} 22. dxe5 {[%clk 0:01:24]}  Qxe5 {[%clk 0:00:49]} 23. Qxe4 {[%clk 0:01:12]}  Qxe4 {[%clk 0:00:49]} 24. Bxe4 {[%clk 0:01:13]}  Rc8 {[%clk 0:00:45]} 25. f3 {[%clk 0:00:55]}  Be6 {[%clk 0:00:43]} 26. Bb7 {[%clk 0:00:44]}  Rb8 {[%clk 0:00:42]} 27. Bc6 {[%clk 0:00:41]}  Rfd8 {[%clk 0:00:40]} 28. Rc2 {[%clk 0:00:37]}  Rbc8 {[%clk 0:00:36]} 29. Rac1 {[%clk 0:00:34]}  b3 {[%clk 0:00:34]} 30. Rb2 {[%clk 0:00:34]}  Rd6 {[%clk 0:00:33]} 0-1


[Site "https://www.chess.com"]

[Event "Titled Tuesday Blitz April 05 Late 2022"]
[White "Dimakiling, Oliver"]
[Black "Maghsoodloo, Parham"]
[WhiteFideId "5202248"]
[BlackFideId "12539929"]
[WhiteElo "2426"]
[BlackElo "2630"]
[Result "1-0"]
[Round "05"]
[TimeControl "180+1"]
[Date "2022.04.05"]
[WhiteClock "0:00:29"]
[BlackClock "0:00:02"]

1. Nf3 {[%clk 0:03:00]}  d5 {[%clk 0:02:59]} 2. c4 {[%clk 0:03:00]}  d4 {[%clk 0:02:59]} 3. e3 {[%clk 0:02:59]}  Nc6 {[%clk 0:02:57]} 4. a3 {[%clk 0:02:57]}  a5 {[%clk 0:02:56]} 5. d3 {[%clk 0:02:52]}  e5 {[%clk 0:02:56]} 6. Be2 {[%clk 0:02:44]}  Bc5 {[%clk 0:02:55]} 7. O-O {[%clk 0:02:42]}  Nge7 {[%clk 0:02:54]} 8. Re1 {[%clk 0:02:42]}  O-O {[%clk 0:02:54]} 9. Bf1 {[%clk 0:02:41]}  Ng6 {[%clk 0:02:45]} 10. exd4 {[%clk 0:02:41]}  Nxd4 {[%clk 0:02:28]} 11. Nxe5 {[%clk 0:02:40]}  Re8 {[%clk 0:02:28]} 12. Nxg6 {[%clk 0:02:37]}  Rxe1 {[%clk 0:02:28]} 13. Qxe1 {[%clk 0:02:37]}  Nc2 {[%clk 0:02:28]} 14. Qe5 {[%clk 0:02:25]}  Nxa1 {[%clk 0:02:12]} 15. Qxc5 {[%clk 0:02:23]}  Nb3 {[%clk 0:02:12]} 16. Ne7+ {[%clk 0:02:19]}  Kh8 {[%clk 0:02:03]} 17. Qe3 {[%clk 0:02:18]}  Ra6 {[%clk 0:01:38]} 18. Nxc8 {[%clk 0:02:15]}  Re6 {[%clk 0:01:35]} 19. Qf3 {[%clk 0:01:55]}  Re1 {[%clk 0:00:41]} 20. Bd2 {[%clk 0:01:14]}  Rxb1 {[%clk 0:00:12]} 21. Bc3 {[%clk 0:01:14]}  f6 {[%clk 0:00:11]} 22. Na7 {[%clk 0:01:11]}  c6 {[%clk 0:00:11]} 23. h4 {[%clk 0:01:08]}  Nd4 {[%clk 0:00:11]} 24. Qe4 {[%clk 0:01:06]}  Nb3 {[%clk 0:00:08]} 25. h5 {[%clk 0:01:04]}  Nc5 {[%clk 0:00:07]} 26. Qe3 {[%clk 0:00:58]}  Nxd3 {[%clk 0:00:06]} 27. h6 {[%clk 0:00:57]}  Rd1 {[%clk 0:00:05]} 28. Bxa5 {[%clk 0:00:52]}  Qg8 {[%clk 0:00:02]} 29. Bc3 {[%clk 0:00:49]}  Qxc4 {[%clk 0:00:01]} 30. Qe8+ {[%clk 0:00:46]}  Qg8 {[%clk 0:00:02]} 31. Qe2 {[%clk 0:00:29]}  Nc1 {[%clk 0:00:02]} 32. Qxd1 {[%clk 0:00:29]} 1-0


[Site "https://www.chess.com"]